fUSD/lending_fUSD_20250119
["ID","MTS","AMOUNT","RATE_DAILY","PERIOD"]
[349541443,1737286240437,-500.0,0.00019178,2]
[349541445,1737286240446,-152.50071768,0.00019178,2]
[349541447,1737286240456,-500.0,0.00019178,2]
[349541449,1737286240465,-500.0,0.00019178,2]
[349541452,1737286240476,-500.0,0.00019178,2]
[349541454,1737286240486,-500.0,0.00019178,2]
[349541456,1737286240496,-500.0,0.00019178,2]
[349541458,1737286240506,-500.0,0.00019178,2]
[349541460,1737286240515,-500.0,0.00019178,2]
[349541462,1737286240524,-500.0,0.00019178,2]
[349541464,1737286240534,-500.0,0.00019178,2]
[349541466,1737286240543,-500.0,0.00019178,2]
[349541468,1737286240554,-500.0,0.00019178,2]
[349541470,1737286240563,-500.0,0.00019178,2]
[349541472,1737286240573,-500.0,0.00019178,2]
[349541474,1737286240582,-500.0,0.00019178,2]
[349541476,1737286240592,-500.0,0.00019178,2]
[349541478,1737286240602,-500.0,0.00019178,2]
[349541480,1737286240612,-500.0,0.00019178,2]
[349541482,1737286240622,-231.47586482,0.00019178,2]
[349541484,1737286240632,-500.0,0.00019178,2]
[349541486,1737286240641,-500.0,0.00019178,2]
[349541488,1737286240651,-500.0,0.00019178,2]
[349541490,1737286240660,-500.0,0.00019178,2]
[349541492,1737286240670,-500.0,0.00019178,2]
[349541494,1737286240679,-500.0,0.00019178,2]
[349541496,1737286240689,-321.10013865,0.00019178,2]
[349541498,1737286240698,-500.0,0.00019178,2]
[349541501,1737286240708,-500.0,0.00019178,2]
[349541503,1737286240717,-500.0,0.00019178,2]
[349541505,1737286240728,-500.0,0.00019178,2]
[349541507,1737286240738,-500.0,0.00019178,2]
[349541509,1737286240747,-217.61838818,0.00019178,2]
[349541511,1737286240757,-251.07718568,0.00019178,2]
[349541513,1737286240766,-500.0,0.00019178,2]
[349541515,1737286240775,-500.0,0.00019178,2]
[349541517,1737286240785,-500.0,0.00019178,2]
[349541519,1737286240794,-500.0,0.00019178,2]
[349541521,1737286240803,-454.19363043,0.00019178,2]
[349541523,1737286240813,-500.0,0.00019178,2]
[349541525,1737286240822,-500.0,0.00019178,2]
[349541527,1737286240831,-662.27,0.00019178,2]
[349541529,1737286240841,-500.0,0.00019178,2]
[349541531,1737286240850,-500.0,0.00019178,2]
[349541533,1737286240859,-500.0,0.00019178,2]
[349541535,1737286240869,-500.0,0.00019178,2]
[349541537,1737286240878,-500.0,0.00019178,2]
[349541539,1737286240888,-500.0,0.00019178,2]
[349541541,1737286240898,-500.0,0.00019178,2]
[349541543,1737286240907,-500.0,0.00019178,2]
[349541545,1737286240916,-500.0,0.00019178,2]
[349541547,1737286240925,-500.0,0.00019178,2]
[349541549,1737286240935,-603.72,0.00019178,2]
[349541551,1737286240946,-2000.0,0.00019178,2]
[349541553,1737286240956,-500.0,0.00019178,2]
[349541555,1737286240966,-200.0,0.00019178,2]
[349541557,1737286240977,-556.23737929,0.00019178,2]
[349541559,1737286240988,-500.0,0.00019178,2]
[349541561,1737286240997,-500.0,0.00019178,2]
[349541563,1737286241007,-500.0,0.00019178,2]
[349541565,1737286241016,-500.0,0.00019178,2]
[349541567,1737286241027,-500.0,0.00019178,2]
[349541569,1737286241037,-500.0,0.00019178,2]
[349541571,1737286241047,-546.6052474,0.00019178,2]
[349541573,1737286241056,-500.0,0.00019178,2]
[349541575,1737286241066,-500.0,0.00019178,2]
[349541577,1737286241076,-657.04,0.00019178,2]
[349541579,1737286241085,-500.0,0.00019178,2]
[349541581,1737286241095,-500.0,0.00019178,2]
[349541583,1737286241104,-500.0,0.00019178,2]
[349541585,1737286241115,-500.0,0.00019178,2]
[349541587,1737286241124,-758.87,0.00019178,2]
[349541590,1737286241134,-500.0,0.00019178,2]
[349541592,1737286241148,-167.824782,0.00019178,2]
[349541594,1737286241159,-500.0,0.00019178,2]
[349541596,1737286241169,-1156.19,0.00019178,2]
[349541598,1737286241179,-500.0,0.00019178,2]
[349541601,1737286241190,-782.7,0.00019178,2]
[349541603,1737286241201,-172.452365,0.00019178,2]
[349541605,1737286241211,-1252.33,0.00019178,2]
[349541607,1737286241221,-972.59,0.00019178,2]
[349541609,1737286241232,-500.0,0.00019178,2]
[349541611,1737286241242,-1086.74,0.00019178,2]
[349541613,1737286241252,-500.0,0.00019178,2]
[349541615,1737286241262,-912.99,0.00019178,2]
[349541617,1737286241272,-500.0,0.00019178,2]
[349541620,1737286241286,-500.0,0.00019178,2]
[349541622,1737286241296,-158.892989,0.00019178,2]
[349541624,1737286241307,-500.0,0.00019178,2]
[349541626,1737286241317,-936.15,0.00019178,2]
[349541628,1737286241327,-1742.82,0.00019178,2]
[349541630,1737286241337,-2432.37,0.00019178,2]
[349541632,1737286241347,-500.0,0.00019178,2]
[349541634,1737286241358,-500.0,0.00019178,2]
[349541636,1737286241368,-815.89,0.00019178,2]
[349541638,1737286241378,-341.36676487,0.00019178,2]
[349541641,1737286241388,-680.7,0.00019178,2]
[349541643,1737286241397,-538.79,0.00019178,2]
[349541645,1737286241407,-500.0,0.00019178,2]
[349541647,1737286241419,-500.0,0.00019178,2]
[349541649,1737286241429,-962.34,0.00019178,2]
[349541651,1737286241439,-589.36,0.00019178,2]
[349541653,1737286241448,-157.841662,0.00019178,2]
[349541655,1737286241459,-880.67,0.00019178,2]
[349541657,1737286241470,-1365.8,0.00019178,2]
[349541660,1737286241482,-500.0,0.00019178,2]
[349541662,1737286241493,-875.93,0.00019178,2]
[349541664,1737286241503,-1357.33,0.00019178,2]
[349541666,1737286241513,-500.0,0.00019178,2]
[349541668,1737286241523,-6106.49,0.00019178,2]
[349541670,1737286241536,-860.6,0.00019178,2]
[349541672,1737286241546,-531.12,0.00019178,2]
[349541674,1737286241556,-5050.81,0.00019178,2]
[349541676,1737286241566,-500.0,0.00019178,2]
[349541678,1737286241576,-3654.26,0.00019178,2]
[349541681,1737286241587,-1328.47,0.00019178,2]
[349541683,1737286241596,-862.34,0.00019178,2]
[349541685,1737286241606,-500.0,0.00019178,2]
[349541687,1737286241616,-500.0,0.00019178,2]
[349541689,1737286241626,-1636.65,0.00019178,2]
[349541691,1737286241636,-500.0,0.00019178,2]
[349541693,1737286241646,-500.0,0.00019178,2]
[349541695,1737286241656,-173.492536,0.00019178,2]
[349541697,1737286241675,-500.0,0.00019178,2]
[349541699,1737286241688,-500.0,0.00019178,2]
[349541701,1737286241697,-1637.47,0.00019178,2]
[349541703,1737286241707,-2308.66,0.00019178,2]
[349541705,1737286241717,-1048.67,0.00019178,2]
[349541707,1737286241732,-500.0,0.00019178,2]
[349541710,1737286241742,-569.13,0.00019178,2]
[349541712,1737286241752,-159.534965,0.00019178,2]
[349541714,1737286241761,-507.43,0.00019178,2]
[349541716,1737286241771,-895.6,0.00019178,2]
[349541718,1737286241781,-500.0,0.00019178,2]
[349541720,1737286241791,-750.18,0.00019178,2]
[349541722,1737286241801,-1552.2,0.00019178,2]
[349541724,1737286241811,-500.0,0.00019178,2]
[349541726,1737286241821,-500.0,0.00019178,2]
[349541728,1737286241831,-526.84,0.00019178,2]
[349541730,1737286241840,-641.35,0.00019178,2]
[349541732,1737286241850,-2574.45,0.00019178,2]
[349541734,1737286241860,-500.0,0.00019178,2]
[349541737,1737286241869,-500.0,0.00019178,2]
[349541739,1737286241878,-500.0,0.00019178,2]
[349541741,1737286241888,-659.41,0.00019178,2]
[349541743,1737286241897,-500.0,0.00019178,2]
[349541745,1737286241907,-2216.15,0.00019178,2]
[349541747,1737286241917,-500.0,0.00019178,2]
[349541749,1737286241927,-504.63689744,0.00019178,2]
[349541751,1737286241937,-1157.77,0.00019178,2]
[349541753,1737286241950,-500.0,0.00019178,2]
[349541755,1737286241960,-507.17148922,0.00019178,2]
[349541757,1737286241970,-500.0,0.00019178,2]
[349541759,1737286241981,-500.0,0.00019178,2]
[349541760,1737286241991,-811.44,0.00019178,2]
[349541761,1737286242002,-1327.35,0.00019178,2]
[349541762,1737286242012,-500.0,0.00019178,2]
[349541763,1737286242022,-500.0,0.00019178,2]
[349541764,1737286242033,-500.0,0.00019178,2]
[349541765,1737286242042,-2012.03,0.00019178,2]
[349541766,1737286242052,-500.0,0.00019178,2]
[349541768,1737286242062,-2004.89,0.00019178,2]
[349541770,1737286242072,-1701.07,0.00019178,2]
[349541773,1737286242082,-500.0,0.00019178,2]
[349541775,1737286242092,-622.01,0.00019178,2]
[349541777,1737286242102,-500.0,0.00019178,2]
[349541779,1737286242112,-833.51,0.00019178,2]
[349541781,1737286242122,-656.28,0.00019178,2]
[349541808,1737286242133,-2895.92,0.00019178,2]
[349541812,1737286242397,-500.0,0.00019178,2]
[349541814,1737286242407,-500.0,0.00019178,2]
[349541816,1737286242417,-4193.97,0.00019178,2]
[349541818,1737286242426,-875.78,0.00019178,2]
[349541820,1737286242435,-514.24,0.00019178,2]
[349541822,1737286242445,-500.0,0.00019178,2]
[349541825,1737286242454,-695.89,0.00019178,2]
[349541826,1737286242464,-3137.76,0.00019178,2]
[349541828,1737286242473,-566.79,0.00019178,2]
[349541831,1737286242483,-1551.4,0.00019178,2]
[349541833,1737286242492,-500.0,0.00019178,2]
[349541835,1737286242501,-500.0,0.00019178,2]
[349541837,1737286242510,-5605.68,0.00019178,2]
[349541839,1737286242519,-500.0,0.00019178,2]
[349541841,1737286242529,-500.0,0.00019178,2]
[349541843,1737286242539,-508.72725085,0.00019178,2]
[349541845,1737286242548,-500.0,0.00019178,2]
[349541847,1737286242557,-500.0,0.00019178,2]
[349541849,1737286242567,-1262.74,0.00019178,2]
[349541851,1737286242577,-500.0,0.00019178,2]
[349541853,1737286242586,-5042.11,0.00019178,2]
[349541855,1737286242596,-500.0,0.00019178,2]
[349541857,1737286242605,-808.37,0.00019178,2]
[349541859,1737286242614,-500.0,0.00019178,2]
[349541861,1737286242625,-458.44502557,0.00019178,2]
[349541862,1737286242634,-500.0,0.00019178,2]
[349541865,1737286242644,-1000.0,0.00019178,2]
[349541867,1737286242653,-1386.46,0.00019178,2]
[349541869,1737286242663,-500.0,0.00019178,2]
[349541871,1737286242672,-2600.2,0.00019178,2]
[349541873,1737286242682,-500.0,0.00019178,2]
[349541875,1737286242691,-500.0,0.00019178,2]
[349541877,1737286242700,-963.15,0.00019178,2]
[349541879,1737286242708,-500.0,0.00019178,2]
[349541881,1737286242717,-1242.04,0.00019178,2]
[349541883,1737286242728,-500.0,0.00019178,2]
[349541885,1737286242737,-4858.07,0.00019178,2]
[349541887,1737286242746,-500.0,0.00019178,2]
[349541889,1737286242755,-2805.43,0.00019178,2]
[349541891,1737286242763,-530.47393239,0.00019178,2]
[349541893,1737286242772,-5061.19,0.00019178,2]
[349541894,1737286242781,-1536.59,0.00019178,2]
[349541896,1737286242790,-701.05,0.00019178,2]
[349541897,1737286242799,-500.0,0.00019178,2]
[349541899,1737286242808,-500.0,0.00019178,2]
[349541901,1737286242817,-500.0,0.00019178,2]
[349541903,1737286242826,-1236.06,0.00019178,2]
[349541904,1737286242836,-500.0,0.00019178,2]
[349541906,1737286242844,-500.0,0.00019178,2]
[349541908,1737286242853,-1016.22,0.00019178,2]
[349541909,1737286242862,-933.76,0.00019178,2]
[349541911,1737286242871,-2317.35,0.00019178,2]
[349541913,1737286242880,-500.0,0.00019178,2]
[349541914,1737286242889,-757.21,0.00019178,2]
[349541916,1737286242898,-2012.26,0.00019178,2]
[349541918,1737286242907,-500.0,0.00019178,2]
[349541919,1737286242917,-500.0,0.00019178,2]
[349541921,1737286242926,-6356.79,0.00019178,2]
[349541923,1737286242939,-944.47,0.00019178,2]
[349541925,1737286242949,-1109.95,0.00019178,2]
[349541926,1737286242958,-500.0,0.00019178,2]
[349541928,1737286242967,-500.0,0.00019178,2]
[349541930,1737286242979,-500.0,0.00019178,2]
[349541932,1737286242988,-500.0,0.00019178,2]
[349541933,1737286242997,-1821.17,0.00019178,2]
[349541936,1737286243006,-500.0,0.00019178,2]
[349541939,1737286243015,-500.0,0.00019178,2]
[349541942,1737286243026,-1160.41,0.00019178,2]
[349541944,1737286243035,-704.05,0.00019178,2]
[349541946,1737286243044,-500.0,0.00019178,2]
[349541948,1737286243054,-500.0,0.00019178,2]
[349541949,1737286243063,-1069.08,0.00019178,2]
[349541951,1737286243072,-500.0,0.00019178,2]
[349541953,1737286243081,-500.0,0.00019178,2]
[349541955,1737286243090,-1410.7,0.00019178,2]
[349541956,1737286243099,-500.0,0.00019178,2]
[349541958,1737286243108,-500.0,0.00019178,2]
[349541960,1737286243117,-500.0,0.00019178,2]
[349541962,1737286243127,-500.0,0.00019178,2]
[349541963,1737286243137,-1739.73,0.00019178,2]
[349541965,1737286243146,-534.93,0.00019178,2]
[349541967,1737286243155,-500.0,0.00019178,2]
[349541969,1737286243165,-500.0,0.00019178,2]
[349541971,1737286243174,-500.0,0.00019178,2]
[349541972,1737286243184,-2020.99,0.00019178,2]
[349541974,1737286243194,-500.0,0.00019178,2]
[349541976,1737286243203,-2122.02,0.00019178,2]
[349541978,1737286243212,-688.32,0.00019178,2]
[349541980,1737286243221,-500.0,0.00019178,2]
[349541981,1737286243232,-500.0,0.00019178,2]
[349541983,1737286243241,-500.0,0.00019178,2]
[349541985,1737286243250,-9153.97,0.00019178,2]
[349541987,1737286243260,-1090.63,0.00019178,2]
[349541989,1737286243269,-1295.57,0.00019178,2]
[349541990,1737286243279,-500.0,0.00019178,2]
[349541992,1737286243289,-500.0,0.00019178,2]
[349541994,1737286243298,-500.0,0.00019178,2]
[349541996,1737286243307,-1588.74,0.00019178,2]
[349541998,1737286243316,-500.0,0.00019178,2]
[349542000,1737286243326,-627.79,0.00019178,2]
[349542001,1737286243335,-500.0,0.00019178,2]
[349542003,1737286243344,-500.0,0.00019178,2]
[349542005,1737286243354,-500.0,0.00019178,2]
[349542007,1737286243363,-500.0,0.00019178,2]
[349542009,1737286243372,-500.0,0.00019178,2]
[349542010,1737286243381,-500.0,0.00019178,2]
[349542012,1737286243391,-501.8,0.00019178,2]
[349542014,1737286243400,-1805.79,0.00019178,2]
[349542016,1737286243409,-500.0,0.00019178,2]
[349542017,1737286243419,-500.0,0.00019178,2]
[349542019,1737286243428,-500.0,0.00019178,2]
[349542021,1737286243437,-614.52,0.00019178,2]
[349542023,1737286243446,-500.0,0.00019178,2]
[349542025,1737286243456,-500.0,0.00019178,2]
[349542026,1737286243465,-2451.79,0.00019178,2]
[349542028,1737286243475,-173.492537,0.00019178,2]
[349542030,1737286243484,-500.0,0.00019178,2]
[349542032,1737286243494,-1291.43,0.00019178,2]
[349542033,1737286243504,-500.0,0.00019178,2]
[349542035,1737286243513,-500.0,0.00019178,2]
[349542037,1737286243523,-870.01,0.00019178,2]
[349542039,1737286243532,-500.0,0.00019178,2]
[349542041,1737286243542,-500.0,0.00019178,2]
[349542042,1737286243551,-500.0,0.00019178,2]
[349542044,1737286243561,-1117.37,0.00019178,2]
[349542046,1737286243571,-932.51,0.00019178,2]
[349542048,1737286243580,-500.0,0.00019178,2]
[349542050,1737286243589,-9404.96,0.00019178,2]
[349542051,1737286243598,-536.42,0.00019178,2]
[349542053,1737286243608,-2234.49,0.00019178,2]
[349542055,1737286243617,-256.50387995,0.00019178,2]
[349542057,1737286243626,-500.0,0.00019178,2]
[349542059,1737286243635,-500.0,0.00019178,2]
[349542061,1737286243645,-500.0,0.00019178,2]
[349542062,1737286243654,-500.0,0.00019178,2]
[349542064,1737286243664,-678.82,0.00019178,2]
[349542066,1737286243674,-217.65301949,0.00019178,2]
[349542068,1737286243683,-500.0,0.00019178,2]
[349542070,1737286243693,-500.0,0.00019178,2]
[349542071,1737286243702,-500.0,0.00019178,2]
[349542073,1737286243711,-794.65,0.00019178,2]
[349542075,1737286243720,-500.0,0.00019178,2]
[349542076,1737286243730,-500.0,0.00019178,2]
[349542077,1737286243740,-1163.67,0.00019178,2]
[349542078,1737286243749,-500.0,0.00019178,2]
[349542079,1737286243758,-500.0,0.00019178,2]
[349542080,1737286243768,-500.0,0.00019178,2]
[349542081,1737286243777,-500.0,0.00019178,2]
[349542082,1737286243787,-500.0,0.00019178,2]
[349542083,1737286243796,-500.0,0.00019178,2]
[349542084,1737286243805,-32231.07848977,0.00019186,2]
[349542085,1737286243814,-300.0,0.00019188,2]
[349542086,1737286243823,-5695.73099711,0.000192,2]
[349542087,1737286243832,-32231.07848977,0.00019227,2]
[349542089,1737286243842,-5695.73099711,0.0001923,2]
[349542090,1737286243851,-150.0,0.00019244,2]
[349542092,1737286243860,-5695.73099711,0.00019261,2]
[349542094,1737286243870,-32231.07848977,0.00019269,2]
[349542096,1737286243880,-150.0,0.00019275,2]
[349542098,1737286243890,-150.0,0.0001928,2]
[349542100,1737286243900,-5695.73099711,0.00019291,2]
[349542102,1737286243910,-32231.07848977,0.0001931,2]
[349542104,1737286243919,-5695.73099711,0.00019322,2]
[349542106,1737286243928,-150.0,0.00019326,2]
[349542108,1737286243939,-32231.07848977,0.00019352,2]
[349542110,1737286243952,-2211.84792938,0.00019352,2]
[349542112,1737286243961,-179.646252,0.00019352,2]
[349542114,1737286243971,-3058.73151649,0.00019352,2]
[349542116,1737286243983,-1037.01319504,0.00019352,2]
[349542118,1737286243992,-190.3508231,0.00019352,2]
[349542120,1737286244001,-220.0,0.00019352,2]
[349542122,1737286244011,-1109.4634,0.00019352,2]
[349542124,1737286244020,-2000.0,0.0001937,2]
[349542126,1737286244029,-200.0,0.0001937,2]
[349542128,1737286244039,-150.0,0.00019384,2]
[349542130,1737286244048,-2813.0,0.000194,2]
[349542133,1737286244058,-500.0,0.00019442,2]
[349542135,1737286244067,-1000.0,0.00019442,2]
[349542137,1737286244076,-202.10577767,0.00019451,2]
[349542138,1737286244086,-2554390.82419071,0.00019452,2]
[349542167,1737286244346,-381.31455623,0.00019452,2]
[349542182,1737286244487,-50248.25868179,0.00019452,2]
[349542184,1737286244498,-316.26595,0.00019452,2]
[349542187,1737286244510,-595.60789737,0.00019452,2]
[349542191,1737286244538,-586.89890921,0.00019452,2]
[349542199,1737286244613,-150.0,0.00019346,2]
[349542201,1737286244622,-1370.0,0.00019452,2]
[349542204,1737286244633,-10443.96760258,0.00019452,2]
[349542206,1737286244644,-25716.53337712,0.00019452,2]
[349542236,1737286244909,-500.0,0.00019178,2]
[349542237,1737286244918,-500.0,0.00019178,2]
[349542239,1737286244927,-78253.68241393,0.00019452,2]
[349542244,1737286244960,-7328.7998,0.00019452,2]
[349542246,1737286244971,-947.72946,0.00019452,2]
[349542252,1737286245023,-5695.73099711,0.00019352,2]
[349542254,1737286245032,-116769.79457325,0.00019452,2]
[349542362,1737286245658,-150.0,0.0001911,2]
[349542364,1737286245668,-500.0,0.00019178,2]
[349542366,1737286245677,-258.66851295,0.00019178,2]
[349542368,1737286245686,-420.03952231,0.00019178,2]
[349542370,1737286245695,-256.29196474,0.00019178,2]
[349542405,1737286246029,-243.70803526,0.00019178,2]
[349542407,1737286246038,-500.0,0.00019178,2]
[349542409,1737286246048,-486.68389218,0.00019178,2]
[349542411,1737286246058,-500.0,0.00019178,2]
[349542414,1737286246068,-500.0,0.00019178,2]
[349542416,1737286246078,-500.0,0.00019178,2]
[349542418,1737286246087,-163.54588891,0.00019394,10]
[349542420,1737286246097,-37138.94822787,0.00019452,2]
[349542422,1737286246109,-46046.12014011,0.00019452,2]
[349542435,1737286246220,-3166.29863999,0.00019452,2]
[349542437,1737286246232,-7685.82423856,0.00019452,2]
[349542439,1737286246243,-13947.37862091,0.00019452,2]
[349542443,1737286246264,-6811.0798225,0.00019452,2]
[349542461,1737286246674,-10942.70319819,0.00019452,2]
[349542463,1737286246686,-3538.71276396,0.00019452,2]
[349542465,1737286246697,-1051.6,0.00019452,2]
[349542470,1737286246738,-2955.8999998,0.00019452,2]
[349542472,1737286246749,-772.604025,0.00019452,2]
[349542476,1737286246778,-13426.82471533,0.00019452,2]
[349542669,1737286398004,155.74,0.00010137,2]
[349542699,1737286834820,400.80668227,0.00022,120]
[349542702,1737287139138,-3900.0,0.00015808,2]
[349542703,1737287139160,-213.30087828,0.00015875,2]
[349542704,1737287139181,-1068.56,0.00015975,2]
[349542705,1737287139202,-1000.0,0.00017272,2]
[349542706,1737287139560,-213.30087826,0.00017427,2]
[349542707,1737287139582,-570.0,0.00017452,2]
[349542708,1737287139603,-1000.0,0.00017456,2]
[349542709,1737287139623,-150.0,0.00017507,2]
[349542710,1737287139644,-497.54,0.00017523,2]
[349542711,1737287139665,-989.59,0.0001757,2]
[349542712,1737287139686,-250.0,0.00017608,2]
[349542713,1737287139707,-4257.72,0.00017642,2]
[349542714,1737287139728,-374.4,0.00017657,2]
[349542715,1737287139750,-216.59,0.00017728,2]
[349542716,1737287139770,-152.04,0.00017745,2]
[349542717,1737287139791,-250.0,0.00017745,2]
[349542718,1737287139811,-200.0,0.00017777,2]
[349542719,1737287139831,-3346.79,0.00017777,2]
[349542720,1737287139853,-1000.0,0.00017807,2]
[349542721,1737287139875,-154.81,0.00017826,2]
[349542722,1737287139896,-1000.0,0.00017863,2]
[349542723,1737287139921,-350.68563094,0.00017917,2]
[349542724,1737287327704,152.71,0.00010137,2]
[349542737,1737287432386,-550.0,0.00015,2]
[349542738,1737287432398,-802.814,0.00015808,2]
[349542739,1737287432407,-600.0,0.00017,2]
[349542740,1737287432417,-213.30087826,0.00017817,2]
[349542741,1737287432426,-490.09,0.00017889,2]
[349542742,1737287432435,-500.39512165,0.00017917,2]
[349542743,1737287432447,-338.76805,0.00017917,2]
[349542744,1737287432470,-254.08540553,0.00017917,2]
[349542745,1737287432481,-75.16579188,0.00017917,2]
[349542746,1737287432491,-408.7,0.00018058,2]
[349542747,1737287432502,-192.42825059,0.00018074,2]
[349542748,1737287432514,-907.60174941,0.00018074,2]
[349542749,1737287432524,-266.53,0.00018089,2]
[349542750,1737287432534,-1068.56,0.00018239,2]
[349542751,1737287432543,-2487.6,0.0001869,2]
[349542752,1737287432553,-76.75214434,0.00018758,2]
[349542753,1737287432565,-189.77785566,0.00018758,2]
[349542754,1737287432574,-1259.058,0.0001878,2]
[349542755,1737287432584,-170.2,0.0001878,2]
[349542756,1737287432594,-169.25,0.00018794,2]
[349542757,1737287432603,-500.0,0.000189,6]
[349542758,1737287432613,-150.0,0.00018933,2]
[349542759,1737287432622,-573.46737642,0.00018978,2]
[349542760,1737287432631,-650.0,0.00019,2]
[349542761,1737287432641,-1000.0,0.00019063,2]
[349542762,1737287432650,-406.0,0.00019077,2]
[349542763,1737287432660,-150.71488412,0.00019078,2]
[349542764,1737287432670,-153.69885172,0.00019078,2]
[349542765,1737287432680,-21190.0648,0.00019078,2]
[349542766,1737287432689,-5701.7887,0.00019078,2]
[349542767,1737287432699,-5000.0,0.00019078,2]
[349542768,1737287432709,-4953.5005,0.00019078,2]
[349542769,1737287432718,-2500.0,0.00019078,2]
[349542770,1737287432728,-297.96,0.00019096,2]
[349542771,1737287432737,-297.96,0.00019096,2]
[349542772,1737287432749,-150.0,0.00019096,2]
[349542773,1737287432758,-865.21,0.00019096,2]
[349542774,1737287432768,-297.96,0.00019096,2]
[349542775,1737287432777,-271.96,0.00019096,2]
[349542776,1737287432788,-161.86554166,0.00019173,2]
[349542777,1737287432798,-500.0,0.00019173,2]
[349542778,1737287432808,-500.0,0.00019178,2]
[349542779,1737287432818,-500.0,0.00019178,2]
[349542780,1737287432828,-500.0,0.00019178,2]
[349542781,1737287432838,-515.66015387,0.00019178,2]
[349542782,1737287432848,-534.11542487,0.00019178,2]
[349542783,1737287432858,-500.0,0.00019178,2]
[349542784,1737287432868,-624.42406703,0.00019178,2]
[349542785,1737287432878,-500.0,0.00019178,2]
[349542786,1737287432888,-500.0,0.00019178,2]
[349542787,1737287432898,-500.0,0.00019178,2]
[349542788,1737287432908,-500.0,0.00019178,2]
[349542789,1737287432918,-500.0,0.00019178,2]
[349542790,1737287432927,-500.0,0.00019178,2]
[349542791,1737287432938,-500.0,0.00019178,2]
[349542792,1737287432947,-616.24685767,0.00019178,2]
[349542793,1737287432957,-500.0,0.00019178,2]
[349542794,1737287432967,-500.0,0.00019178,2]
[349542795,1737287432977,-510.82214671,0.00019178,2]
[349542796,1737287432986,-500.0,0.00019178,2]
[349542797,1737287432996,-500.0,0.00019178,2]
[349542798,1737287433008,-500.0,0.00019178,2]
[349542799,1737287433017,-500.0,0.00019178,2]
[349542800,1737287433027,-500.0,0.00019178,2]
[349542801,1737287433036,-500.0,0.00019178,2]
[349542802,1737287433046,-500.0,0.00019178,2]
[349542803,1737287433056,-316.68412465,0.00019178,2]
[349542804,1737287433066,-500.0,0.00019178,2]
[349542805,1737287433076,-500.0,0.00019178,2]
[349542806,1737287433086,-114.31304238,0.00019178,2]
[349542807,1737287433100,-385.68695762,0.00019178,2]
[349542808,1737287433110,-500.0,0.00019178,2]
[349542809,1737287433120,-500.0,0.00019178,2]
[349542810,1737287433131,-500.0,0.00019178,2]
[349542811,1737287433141,-500.0,0.00019178,2]
[349542812,1737287433151,-500.0,0.00019178,2]
[349542813,1737287433161,-57.03950698,0.00019178,2]
[349542814,1737287433174,-442.96049302,0.00019178,2]
[349542815,1737287433184,-536.18516507,0.00019178,2]
[349542816,1737287433194,-527.593227,0.00019178,2]
[349542817,1737287433204,-500.0,0.00019178,2]
[349542818,1737287433214,-508.03663349,0.00019178,2]
[349542819,1737287433225,-323.98140404,0.00019178,2]
[349542820,1737287433236,-716.73,0.00019178,2]
[349542821,1737287433246,-625.30516773,0.00019178,2]
[349542822,1737287433259,-500.0,0.00019178,2]